fUST/lending_fUST_20241006
["ID","MTS","AMOUNT","RATE_DAILY","PERIOD"]
[339953857,1728207040498,-168462.40541702,0.00013688,2]
[339953868,1728207046093,-43528.58896727,0.00013688,2]
[339953878,1728207534528,244.83566776,0.00010209,2]
[339953945,1728208232248,-207.090894,0.00012,2]
[339953946,1728208232263,-644.7098062,0.00012128,2]
[339953947,1728208232276,-392.90910608,0.00012149,2]
[339953951,1728208238421,-253.53521995,0.00012149,2]
[339953952,1728208238436,-1.24271347,0.00012149,2]
[339953953,1728208238446,-331.79969592,0.00012161,2]
[339953975,1728208240236,-501.47209138,0.00012161,2]
[339953976,1728208240246,-250.0,0.00012167,2]
[339953977,1728208240256,-206.948421,0.00012233,2]
[339953978,1728208240266,-206.948421,0.0001287,2]
[339953979,1728208240275,-603.26026008,0.0001315,2]
[339953980,1728208240285,-300.0,0.00013156,2]
[339953981,1728208240294,-300.0,0.00013156,2]
[339953982,1728208240304,-6916.7229064,0.00013157,2]
[339953983,1728208240314,-160.0,0.00013179,3]
[339953984,1728208240324,-150.39677943,0.00013396,2]
[339953985,1728208240334,-1885.37142758,0.00013461,2]
[339953986,1728208240358,-756.42586662,0.0001347,2]
[339953987,1728208240367,-756.42586659,0.00013473,2]
[339953988,1728208240378,-530.357148,0.00013474,2]
[339953989,1728208240387,-756.42586659,0.00013475,2]
[339953990,1728208240397,-756.42586659,0.00013478,2]
[339953991,1728208240407,-756.42586659,0.0001348,2]
[339953992,1728208240418,-701.54159836,0.000135,2]
[339953993,1728208240428,-30014.05933666,0.000135,2]
[339953994,1728208240437,-5941.42465319,0.00013561,2]
[339953995,1728208240447,-2405.8792961,0.00013561,2]
[339953996,1728208240456,-45963.2974583,0.0001357,2]
[339953997,1728208240466,-49878.5583082,0.0001357,2]
[339953998,1728208240476,-91926.5949165,0.0001357,2]
[339953999,1728208240485,-53375.03764484,0.0001357,2]
[339954000,1728208240497,-13950.75798289,0.0001357,2]
[339954001,1728208240509,-32431.32098867,0.0001357,2]
[339954002,1728208240519,-150.0,0.00013572,2]
[339954003,1728208240528,-525.0,0.00013572,2]
[339954004,1728208240537,-1218.0,0.00013572,2]
[339954005,1728208240547,-4912.31113497,0.0001358,2]
[339954006,1728208240556,-46679.64835903,0.0001358,2]
[339954007,1728208240565,-45963.2974583,0.0001358,2]
[339954008,1728208240575,-49878.5583082,0.0001358,2]
[339954009,1728208240584,-21307.01987895,0.00013588,2]
[339954010,1728208240597,-160.0,0.00013589,4]
[339954011,1728208240606,-91926.5949165,0.0001359,2]
[339954012,1728208240615,-99757.1166164,0.0001359,2]
[339954013,1728208240625,-151.0,0.0001359,2]
[339954014,1728208240633,-151.0,0.0001359,2]
[339954015,1728208240642,-151.0,0.0001359,2]
[339954016,1728208240652,-151.0,0.0001359,2]
[339954017,1728208240662,-151.0,0.0001359,2]
[339954018,1728208240671,-151.0,0.0001359,2]
[339954019,1728208240680,-151.203725,0.0001359,2]
[339954020,1728208240689,-318.330088,0.0001359,2]
[339954021,1728208240698,-318.330088,0.0001359,2]
[339954022,1728208240707,-49379.38703516,0.000136,2]
[339954050,1728208246408,-1156.72347999,0.0001349,2]
[339954051,1728208246419,-5278.47652001,0.000136,2]
[339954139,1728209432363,-3000.0,0.00011189,2]
[339954141,1728209432373,-4423.5239903,0.0001119,2]
[339954143,1728209432382,-300.0,0.00011322,2]
[339954145,1728209432394,-300.0,0.00011322,2]
[339954147,1728209432406,-6499.6912091,0.00011324,2]
[339954150,1728209432422,-158.133436,0.00011387,2]
[339954152,1728209432433,-158.133436,0.00011437,2]
[339954154,1728209432443,-158.133436,0.00011486,2]
[339954156,1728209432454,-158.133436,0.00011536,2]
[339954159,1728209432466,-158.133436,0.00011585,2]
[339954160,1728209432476,-158.133436,0.00011634,2]
[339954163,1728209432488,-158.133436,0.00011684,2]
[339954165,1728209432499,-614.78500444,0.00011719,2]
[339954167,1728209432511,-158.133436,0.00011733,2]
[339954170,1728209432521,-158.133436,0.00011783,2]
[339954172,1728209432533,-158.133436,0.00011832,2]
[339954174,1728209432544,-158.133436,0.00011882,2]
[339954176,1728209432556,-158.133436,0.00011931,2]
[339954179,1728209432568,-158.133436,0.00011981,2]
[339954181,1728209432578,-214.904468,0.00012,2]
[339954183,1728209432589,-500.0,0.00012336,2]
[339954185,1728209432599,-500.0,0.00012336,2]
[339954187,1728209432609,-420.0,0.00012438,2]
[339954189,1728209432619,-420.0,0.00012454,2]
[339954190,1728209432628,-161.727948,0.00012463,2]
[339954192,1728209432639,-161.727948,0.00012466,2]
[339954193,1728209432650,-161.727948,0.00012469,2]
[339954194,1728209432660,-161.727948,0.00012473,2]
[339954195,1728209432670,-161.727948,0.00012476,2]
[339954196,1728209432680,-161.727948,0.00012479,2]
[339954197,1728209432690,-161.727948,0.00012482,2]
[339954198,1728209432701,-161.727948,0.00012486,2]
[339954199,1728209432712,-161.727948,0.00012489,2]
[339954200,1728209432721,-161.727948,0.00012492,2]
[339954201,1728209432731,-161.727948,0.00012496,2]
[339954202,1728209432741,-161.727948,0.00012499,2]
[339954204,1728209432751,-161.727948,0.00012502,2]
[339954206,1728209432763,-161.727948,0.00012505,2]
[339954208,1728209432773,-161.727948,0.00012509,2]
[339954210,1728209432783,-161.727948,0.00012512,2]
[339954212,1728209432794,-161.727948,0.00012515,2]
[339954213,1728209432804,-161.727948,0.00012519,2]
[339954214,1728209432814,-161.727948,0.00012522,2]
[339954215,1728209432824,-161.727948,0.00012525,2]
[339954216,1728209432834,-500.0,0.0001292,2]
[339954217,1728209432844,-500.0,0.00012953,2]
[339954218,1728209432855,-17237.63657648,0.00013,2]
[339954219,1728209432866,-1737.75495426,0.00013,2]
[339954220,1728209432877,-7197.85828682,0.00013282,2]
[339954221,1728209432888,-49379.38703515,0.000133,2]
[339954222,1728209432899,-504.28391107,0.0001332,2]
[339954223,1728209432910,-709.350122,0.0001342,2]
[339954224,1728209432921,-1000.0,0.00013441,2]
[339954225,1728209432931,-1130.86724949,0.00013451,2]
[339954226,1728209432942,-806.69306,0.00013474,2]
[339954227,1728209432952,-150.112233,0.000135,2]
[339954228,1728209432962,-150.112233,0.000135,2]
[339954229,1728209432974,-150.112233,0.000135,2]
[339954230,1728209432985,-150.112233,0.000135,2]
[339954231,1728209432998,-150.112233,0.000135,2]
[339954232,1728209433009,-150.112233,0.000135,2]
[339954233,1728209433023,-150.112233,0.000135,2]
[339954234,1728209433033,-150.112233,0.000135,2]
[339954235,1728209433043,-1000.0,0.00013503,2]
[339954236,1728209433055,-1000.0,0.0001351,2]
[339954237,1728209433065,-13977.2119633,0.00013522,2]
[339954238,1728209433076,-219219.341191,0.00013522,2]
[339954239,1728209433086,-1000.0,0.00013531,2]
[339954240,1728209433096,-9318.14130888,0.00013531,2]
[339954241,1728209433107,-146146.227461,0.00013531,2]
[339954242,1728209433117,-6988.60598166,0.00013541,2]
[339954243,1728209433127,-36536.5568651,0.00013541,2]
[339954244,1728209433137,-151.0,0.00013548,2]
[339954245,1728209433147,-540.997562,0.00013548,2]
[339954246,1728209433159,-540.997562,0.00013548,2]
[339954247,1728209433170,-151.0,0.00013548,2]
[339954248,1728209433181,-151.0,0.00013548,2]
[339954249,1728209433191,-151.0,0.00013548,2]
[339954250,1728209433201,-1404.118343,0.00013548,2]
[339954251,1728209433211,-1404.118343,0.00013548,2]
[339954252,1728209433221,-151.0,0.00013548,2]
[339954253,1728209433231,-151.0,0.00013548,2]
[339954254,1728209433241,-165.633027,0.00013548,2]
[339954255,1728209433251,-151.0,0.00013548,2]
[339954256,1728209433262,-151.0,0.00013548,2]
[339954257,1728209433272,-151.203725,0.00013548,2]
[339954258,1728209433283,-151.0,0.00013548,2]
[339954259,1728209433293,-183.535249,0.00013548,2]
[339954260,1728209433304,-183.535249,0.00013548,2]
[339954261,1728209433316,-151.0,0.00013548,2]
[339954262,1728209433327,-222.113818,0.00013548,2]
[339954263,1728209433337,-222.113818,0.00013548,2]
[339954264,1728209433347,-166.1,0.00013548,2]
[339954265,1728209433356,-166.1,0.00013548,2]
[339954266,1728209433367,-221.039575,0.00013548,2]
[339954267,1728209433377,-221.039575,0.00013548,2]
[339954268,1728209433387,-682.771132,0.00013548,2]
[339954269,1728209433396,-324.158825,0.00013548,2]
[339954270,1728209433406,-324.158825,0.00013548,2]
[339954271,1728209433416,-682.771132,0.00013548,2]
[339954272,1728209433426,-2488.075892,0.00013548,2]
[339954273,1728209433437,-2488.075892,0.00013548,2]
[339954274,1728209433447,-612.949853,0.00013548,2]
[339954275,1728209433457,-612.949853,0.00013548,2]
[339954276,1728209433467,-24963.6939422,0.00013548,2]
[339954277,1728209433477,-2329.53532722,0.00013551,2]
[339954278,1728209433486,-299.7024921,0.00013551,2]
[339954279,1728209433495,-151.0,0.00013551,2]
[339954280,1728209433504,-540.997562,0.00013551,2]
[339954281,1728209433516,-540.997562,0.00013551,2]
[339954282,1728209433526,-151.0,0.00013551,2]
[339954283,1728209433537,-151.0,0.00013551,2]
[339954284,1728209433548,-151.0,0.00013551,2]
[339954285,1728209433558,-1404.118343,0.00013551,2]
[339954286,1728209433568,-1404.118343,0.00013551,2]
[339954287,1728209433578,-151.0,0.00013551,2]
[339954288,1728209433588,-151.0,0.00013551,2]
[339954289,1728209433598,-151.0,0.00013551,2]
[339954290,1728209433608,-151.0,0.00013551,2]
[339954291,1728209433618,-151.0,0.00013551,2]
[339954292,1728209433629,-183.535249,0.00013551,2]
[339954293,1728209433640,-183.535249,0.00013551,2]
[339954294,1728209433651,-151.0,0.00013551,2]
[339954295,1728209433661,-222.113818,0.00013551,2]
[339954296,1728209433671,-222.113818,0.00013551,2]
[339954297,1728209433682,-166.1,0.00013551,2]
[339954298,1728209433692,-166.1,0.00013551,2]
[339954299,1728209433703,-221.039575,0.00013551,2]
[339954300,1728209433714,-221.039575,0.00013551,2]
[339954301,1728209433725,-324.158825,0.00013551,2]
[339954302,1728209433735,-682.771132,0.00013551,2]
[339954303,1728209433745,-324.158825,0.00013551,2]
[339954304,1728209433756,-682.771132,0.00013551,2]
[339954305,1728209433766,-2488.075892,0.00013551,2]
[339954306,1728209433776,-2488.075892,0.00013551,2]
[339954307,1728209433786,-612.949853,0.00013551,2]
[339954308,1728209433797,-612.949853,0.00013551,2]
[339954309,1728209433808,-6988.60598166,0.00013551,2]
[339954310,1728209433818,-110965.44147518,0.00013561,2]
[339954311,1728209433828,-193.033892,0.00013561,2]
[339954312,1728209433839,-193.033892,0.00013561,2]
[339954313,1728209433849,-151.0,0.00013561,2]
[339954314,1728209433859,-151.0,0.00013561,2]
[339954315,1728209433869,-151.382236,0.00013561,2]
[339954316,1728209433879,-151.0,0.00013561,2]
[339954317,1728209433889,-214.746045,0.00013561,2]
[339954318,1728209433899,-214.746045,0.00013561,2]
[339954319,1728209433909,-1048.209243,0.00013561,2]
[339954320,1728209433929,-151.0,0.00013561,2]
[339954321,1728209433941,-1048.209243,0.00013561,2]
[339954322,1728209433952,-151.0,0.00013561,2]
[339954323,1728209433962,-151.0,0.00013561,2]
[339954324,1728209433972,-434.169053,0.00013561,2]
[339954325,1728209433982,-169.812762,0.00013561,2]
[339954326,1728209433992,-434.169053,0.00013561,2]
[339954327,1728209434002,-169.812762,0.00013561,2]
[339954328,1728209434012,-151.0,0.00013561,2]
[339954329,1728209434023,-151.0,0.00013561,2]
[339954330,1728209434033,-155.218383,0.00013561,2]
[339954331,1728209434045,-151.0,0.00013561,2]
[339954332,1728209434055,-151.0,0.00013561,2]
[339954333,1728209434065,-151.0,0.00013561,2]
[339954334,1728209434079,-151.0,0.00013561,2]
[339954335,1728209434090,-151.0,0.00013561,2]
[339954336,1728209434100,-151.0,0.00013561,2]
[339954337,1728209434110,-540.997562,0.00013561,2]
[339954338,1728209434122,-540.997562,0.00013561,2]
[339954339,1728209434132,-766.796654,0.00013561,2]
[339954340,1728209434142,-151.0,0.00013561,2]
[339954341,1728209434152,-766.796654,0.00013561,2]
[339954342,1728209434162,-151.974423,0.00013561,2]
[339954343,1728209434172,-151.0,0.00013561,2]
[339954344,1728209434183,-1404.118343,0.00013561,2]
[339954345,1728209434193,-1404.118343,0.00013561,2]
[339954346,1728209434203,-151.0,0.00013561,2]
[339954347,1728209434213,-151.0,0.00013561,2]
[339954348,1728209434223,-151.0,0.00013561,2]
[339954349,1728209434233,-151.0,0.00013561,2]
[339954350,1728209434244,-183.535249,0.00013561,2]
[339954351,1728209434255,-183.535249,0.00013561,2]
[339954352,1728209434265,-151.0,0.00013561,2]
[339954353,1728209434275,-222.113818,0.00013561,2]
[339954354,1728209434285,-222.113818,0.00013561,2]
[339954355,1728209434296,-166.1,0.00013561,2]
[339954356,1728209434305,-166.1,0.00013561,2]
[339954357,1728209434315,-221.039575,0.00013561,2]
[339954358,1728209434326,-221.039575,0.00013561,2]
[339954359,1728209434336,-324.158825,0.00013561,2]
[339954360,1728209434346,-682.771132,0.00013561,2]
[339954361,1728209434356,-324.158825,0.00013561,2]
[339954362,1728209434367,-682.771132,0.00013561,2]
[339954363,1728209434377,-2488.075892,0.00013561,2]
[339954364,1728209434389,-2488.075892,0.00013561,2]
[339954365,1728209434400,-151.0,0.00013561,2]
[339954366,1728209434412,-612.949853,0.00013561,2]
[339954367,1728209434422,-612.949853,0.00013561,2]
[339954368,1728209434432,-151.0,0.00013561,2]
[339954369,1728209434442,-151.0,0.00013561,2]
[339954370,1728209434452,-151.0,0.00013561,2]
[339954371,1728209434462,-1161.81407,0.00013561,2]
[339954372,1728209434472,-1161.81407,0.00013561,2]
[339954373,1728209434482,-530.288375,0.00013561,2]
[339954374,1728209434491,-530.288375,0.00013561,2]
[339954375,1728209434501,-151.0,0.00013561,2]
[339954376,1728209434511,-567.524635,0.00013561,2]
[339954377,1728209434521,-567.524635,0.00013561,2]
[339954378,1728209434533,-2329.53532722,0.00013569,2]
[339954379,1728209434544,-2329.53532722,0.0001357,2]
[339954380,1728209434554,-150.0,0.00013572,2]
[339954381,1728209434565,-525.0,0.00013572,2]
[339954382,1728209434575,-1218.0,0.00013572,2]
[339954383,1728209434585,-151.0,0.0001358,2]
[339954384,1728209434596,-540.997562,0.0001358,2]
[339954385,1728209434606,-540.997562,0.0001358,2]
[339954386,1728209434616,-152.623124,0.0001358,2]
[339954387,1728209434626,-151.0,0.0001358,2]
[339954388,1728209434636,-1404.118343,0.0001358,2]
[339954389,1728209434646,-1404.118343,0.0001358,2]
[339954390,1728209434657,-151.0,0.0001358,2]
[339954391,1728209434666,-151.0,0.0001358,2]
[339954392,1728209434677,-151.0,0.0001358,2]
[339954393,1728209434688,-151.0,0.0001358,2]
[339954394,1728209434698,-183.535249,0.0001358,2]
[339954395,1728209434708,-183.535249,0.0001358,2]
[339954396,1728209434718,-151.484729,0.0001358,2]
[339954397,1728209434728,-222.113818,0.0001358,2]
[339954398,1728209434740,-222.113818,0.0001358,2]
[339954399,1728209434750,-166.1,0.0001358,2]
[339954400,1728209434761,-166.1,0.0001358,2]
[339954401,1728209434772,-221.039575,0.0001358,2]
[339954402,1728209434784,-221.039575,0.0001358,2]
[339954403,1728209434795,-324.158825,0.0001358,2]
[339954404,1728209434805,-682.771132,0.0001358,2]
[339954405,1728209434815,-324.158825,0.0001358,2]
[339954406,1728209434824,-682.771132,0.0001358,2]
[339954407,1728209434834,-2488.075892,0.0001358,2]
[339954408,1728209434843,-2488.075892,0.0001358,2]
[339954409,1728209434853,-612.949853,0.0001358,2]
[339954410,1728209434863,-612.949853,0.0001358,2]
[339954411,1728209434872,-2329.53532722,0.0001358,2]
[339954412,1728209434881,-1000.0,0.00013583,2]
[339954413,1728209434891,-1930.33959265,0.00013586,2]
[339954414,1728209434901,-264.008,0.00013589,2]
[339954415,1728209434911,-151.0,0.0001359,2]
[339954416,1728209434921,-151.0,0.0001359,2]
[339954417,1728209434930,-434.169053,0.0001359,2]
[339954418,1728209434939,-169.812762,0.0001359,2]
[339954419,1728209434948,-434.169053,0.0001359,2]
[339954420,1728209434958,-169.812762,0.0001359,2]
[339954421,1728209434967,-151.0,0.0001359,2]
[339954422,1728209435169,-152.858791,0.0001359,2]
[339954423,1728209435179,-151.0,0.0001359,2]
[339954424,1728209435189,-151.0,0.0001359,2]
[339954425,1728209435198,-151.0,0.0001359,2]
[339954426,1728209435207,-151.0,0.0001359,2]
[339954427,1728209435217,-151.0,0.0001359,2]
[339954428,1728209435226,-151.0,0.0001359,2]
[339954429,1728209435235,-540.997562,0.0001359,2]
[339954430,1728209435244,-540.997562,0.0001359,2]
[339954431,1728209435254,-766.796654,0.0001359,2]
[339954432,1728209435263,-766.796654,0.0001359,2]
[339954433,1728209435272,-275.782557,0.0001359,2]
[339954434,1728209435281,-1404.118343,0.0001359,2]
[339954435,1728209435291,-1404.118343,0.0001359,2]
[339954436,1728209435300,-47621.76268812,0.000136,2]
[339954437,1728209435310,-150.112233,0.000136,2]
[339954438,1728209435319,-150.112233,0.000136,2]
[339954439,1728209435328,-150.112233,0.000136,2]
[339954440,1728209435338,-150.112233,0.000136,2]
[339954441,1728209435347,-150.112233,0.000136,2]
[339954442,1728209435356,-150.112233,0.000136,2]
[339954443,1728209435366,-150.112233,0.000136,2]
[339954444,1728209435375,-150.112233,0.000136,2]
[339954445,1728209435384,-151.0,0.000136,2]
[339954446,1728209435394,-151.0,0.000136,2]
[339954447,1728209435404,-150.112233,0.000136,2]
[339954448,1728209435413,-150.112233,0.000136,2]
[339954449,1728209435423,-150.112233,0.000136,2]
[339954450,1728209435433,-150.112233,0.000136,2]
[339954451,1728209435442,-150.112233,0.000136,2]
[339954452,1728209435451,-150.112233,0.000136,2]
[339954453,1728209435461,-150.112233,0.000136,2]
[339954454,1728209435470,-151.0,0.000136,2]
[339954455,1728209435479,-214.746045,0.000136,2]
[339954456,1728209435489,-214.746045,0.000136,2]
[339954457,1728209435499,-1048.209243,0.000136,2]
[339954458,1728209435508,-151.0,0.000136,2]
[339954459,1728209435517,-1048.209243,0.000136,2]
[339954460,1728209435526,-300.0,0.000136,4]
[339954461,1728209435536,-151.0,0.000136,2]
[339954462,1728209435548,-150.112233,0.000136,2]
[339954463,1728209435560,-150.112233,0.000136,2]
[339954464,1728209435571,-150.112233,0.000136,2]
[339954465,1728209435582,-150.112233,0.000136,2]
[339954466,1728209435592,-150.112233,0.000136,2]
[339954467,1728209435603,-150.112233,0.000136,2]
[339954468,1728209435614,-151.0,0.000136,2]
[339954469,1728209435623,-151.0,0.000136,2]
[339954470,1728209435635,-151.0,0.000136,2]
[339954471,1728209435644,-183.535249,0.000136,2]
[339954472,1728209435654,-183.535249,0.000136,2]
[339954473,1728209435664,-222.113818,0.000136,2]
[339954474,1728209435677,-222.113818,0.000136,2]
[339954475,1728209435687,-166.1,0.000136,2]
[339954476,1728209435697,-166.1,0.000136,2]
[339954477,1728209435708,-221.039575,0.000136,2]
[339954478,1728209435720,-221.039575,0.000136,2]
[339954479,1728209435731,-324.158825,0.000136,2]
[339954480,1728209435742,-682.771132,0.000136,2]
[339954481,1728209435751,-324.158825,0.000136,2]
[339954482,1728209435760,-682.771132,0.000136,2]
[339954483,1728209435770,-2488.075892,0.000136,2]
[339954484,1728209435779,-2488.075892,0.000136,2]
[339954485,1728209435788,-152.007207,0.000136,2]
[339954486,1728209435798,-612.949853,0.000136,2]
[339954487,1728209435808,-612.949853,0.000136,2]
[339954488,1728209435817,-151.0,0.000136,2]
[339954489,1728209435826,-151.0,0.000136,2]
[339954490,1728209435835,-151.0,0.000136,2]
[339954491,1728209435844,-1161.81407,0.000136,2]
[339954492,1728209435853,-1161.81407,0.000136,2]
[339954493,1728209435863,-530.288375,0.000136,2]
[339954494,1728209435873,-530.288375,0.000136,2]
[339954495,1728209435886,-151.0,0.000136,2]
[339954496,1728209435897,-567.524635,0.000136,2]
[339954497,1728209435907,-567.524635,0.000136,2]
[339954498,1728209435917,-722.91516128,0.00013606,2]
[339954499,1728209435927,-193.033892,0.00013628,2]
[339954500,1728209435937,-193.033892,0.00013628,2]
[339954501,1728209435947,-151.0,0.00013628,2]
[339954502,1728209435959,-214.746045,0.00013628,2]
[339954503,1728209435969,-214.746045,0.00013628,2]
[339954504,1728209435979,-957.37852474,0.00013628,2]
[339954523,1728209440511,-172.56,0.00010959,2]
[339954524,1728209440524,-504.28391107,0.0001335,2]
[339954525,1728209440535,-504.28391107,0.00013381,2]
[339954526,1728209440545,-504.28391107,0.00013411,2]
[339954527,1728209440556,-504.28391107,0.00013441,2]
[339954528,1728209440569,-151.0,0.00013561,2]
[339954529,1728209440581,-90.83071826,0.00013628,2]
[339954530,1728209440591,-151.0,0.00013628,2]
[339954531,1728209440602,-1048.209243,0.00013628,2]
[339954532,1728209440613,-151.0,0.00013628,2]
[339954533,1728209440625,-151.0,0.00013628,2]
[339954534,1728209440638,-434.169053,0.00013628,2]
[339954535,1728209440649,-169.812762,0.00013628,2]
[339954536,1728209440663,-434.169053,0.00013628,2]
[339954537,1728209440676,-169.812762,0.00013628,2]
[339954538,1728209440686,-151.0,0.00013628,2]
[339954539,1728209440697,-151.0,0.00013628,2]
[339954540,1728209440709,-151.0,0.00013628,2]
[339954541,1728209440720,-151.0,0.00013628,2]
[339954542,1728209440731,-151.0,0.00013628,2]
[339954543,1728209440742,-766.796654,0.00013628,2]
[339954544,1728209440753,-766.796654,0.00013628,2]
[339954545,1728209440764,-151.0,0.00013638,2]
[339954546,1728209440775,-151.0,0.00013638,2]
[339954547,1728209440786,-530.357148,0.00013642,2]
[339954548,1728209440797,-806.69306,0.00013642,2]
[339954549,1728209440808,-151.0,0.00013648,2]
[339954550,1728209440820,-151.0,0.00013648,2]
[339954551,1728209440830,-151.0,0.00013648,2]
[339954552,1728209440841,-151.0,0.00013648,2]
[339954553,1728209440851,-178.139726,0.00013648,2]
[339954554,1728209440863,-151.0,0.00013648,2]
[339954555,1728209440873,-151.0,0.00013648,2]
[339954556,1728209440884,-151.0,0.00013648,2]
[339954557,1728209440895,-151.0,0.00013648,2]
[339954558,1728209440908,-151.0,0.00013648,2]
[339954559,1728209440919,-151.0,0.00013648,2]
[339954560,1728209440932,-152.819195,0.00013658,2]
[339954561,1728209440943,-151.0,0.00013658,2]
[339954562,1728209440955,-151.0,0.00013658,2]
[339954563,1728209440966,-434.169053,0.00013658,2]
[339954564,1728209440976,-169.812762,0.00013658,2]
[339954565,1728209440988,-434.169053,0.00013658,2]
[339954566,1728209441001,-169.812762,0.00013658,2]
[339954567,1728209441011,-151.0,0.00013658,2]
[339954568,1728209441024,-154.542306,0.00013658,2]
[339954569,1728209441034,-151.0,0.00013658,2]
[339954570,1728209441046,-151.0,0.00013658,2]
[339954571,1728209441056,-766.796654,0.00013658,2]
[339954572,1728209441066,-766.796654,0.00013658,2]
[339954573,1728209441080,-1404.118343,0.00013658,2]
[339954574,1728209441089,-1404.118343,0.00013658,2]
[339954575,1728209441099,-193.033892,0.00013659,2]
[339954576,1728209441112,-193.033892,0.00013659,2]
[339954577,1728209441122,-151.0,0.00013659,2]
[339954578,1728209441319,-214.746045,0.00013659,2]
[339954579,1728209441330,-214.746045,0.00013659,2]
[339954580,1728209441341,-1048.209243,0.00013659,2]
[339954581,1728209441352,-151.0,0.00013659,2]
[339954582,1728209441362,-1048.209243,0.00013659,2]
[339954583,1728209441372,-151.0,0.00013659,2]
[339954584,1728209441381,-540.997562,0.00013659,2]
[339954585,1728209441391,-540.997562,0.00013659,2]
[339954586,1728209441400,-587.0,0.00013663,2]
[339954587,1728209441409,-10174.69521624,0.00013667,2]
[339954588,1728209441419,-599.31890859,0.00013673,2]
[339954589,1728209441428,-500.0,0.00013673,2]
[339954590,1728209441438,-501.84892434,0.00013673,2]
[339954591,1728209441448,-500.0,0.00013673,2]
[339954592,1728209441457,-500.0,0.00013673,2]
[339954593,1728209441467,-500.0,0.00013673,2]
[339954594,1728209441477,-500.0,0.00013673,2]
[339954595,1728209441486,-500.0,0.00013673,2]
[339954596,1728209441496,-276.70024115,0.00013673,2]
[339954597,1728209441505,-500.0,0.00013673,2]
[339954598,1728209441515,-549.1192416,0.00013673,2]
[339954599,1728209441524,-500.0,0.00013673,2]
[339954600,1728209441534,-495.45284797,0.00013673,2]
[339954601,1728209441544,-500.0,0.00013673,2]
[339954602,1728209441554,-510.47111005,0.00013673,2]
[339954603,1728209441563,-500.0,0.00013673,2]
[339954604,1728209441574,-500.0,0.00013673,2]
[339954605,1728209441583,-500.0,0.00013673,2]
[339954606,1728209441593,-500.0,0.00013673,2]
[339954607,1728209441602,-500.0,0.00013673,2]
[339954608,1728209441612,-169.0,0.00013673,2]
[339954609,1728209441621,-317.20859203,0.00013673,2]
[339954610,1728209441630,-500.0,0.00013673,2]
[339954611,1728209441639,-500.0,0.00013673,2]
[339954612,1728209441648,-500.0,0.00013673,2]
[339954613,1728209441658,-500.0,0.00013673,2]
[339954614,1728209441667,-500.0,0.00013673,2]
[339954615,1728209441676,-617.81017745,0.00013673,2]
[339954616,1728209441686,-500.0,0.00013673,2]
[339954617,1728209441696,-500.0,0.00013673,2]
[339954618,1728209441705,-151.0,0.00013687,2]
[339954619,1728209441714,-151.0,0.00013687,2]
[339954620,1728209441723,-151.689506,0.00013687,2]
[339954621,1728209441733,-151.0,0.00013687,2]
[339954622,1728209441742,-152.116987,0.00013687,2]
[339954623,1728209441752,-151.0,0.00013687,2]
[339954624,1728209441761,-151.0,0.00013687,2]
[339954625,1728209441770,-151.0,0.00013687,2]
[339954626,1728209441779,-152.302375,0.00013687,2]
[339954627,1728209441788,-151.0,0.00013688,2]
[339954628,1728209441798,-151.0,0.00013688,2]
[339954629,1728209441808,-151.0,0.00013688,2]
[339954630,1728209441818,-151.0,0.00013688,2]